Cogmind - Beta 14 @@@ ROGUE MODE // 2024.09.09 @ 16:10:19 Player: SKIP Result: Destroyed by Y-45 Defender with Heavy Assault Rifle Performance ------------- Evolutions (0) 0 Regions Visited (2) 400 Robots Destroyed (29) 145 Value Destroyed (777) 777 Prototype IDs (0) 0 Alien Tech Used (0) 0 Bonus (0) 0 TOTAL SCORE: 1322 Bonus ------- None Cogmind --------- Core Integrity 0/250 Matter 295/300 Energy 90/100 System Corruption 0% Temperature Cool (9) Movement Core (1400) Ox27 Location -10/Mines Parts ------- > --- POWER (1) -------- (None) > --- PROPULSION (2) --- Improved Aluminum Leg > --- UTILITY (2) ------ Huge Storage Unit > --- WEAPON (2) ------- Heavy Hammer > --- INVENTORY (25) --- Ion Engine Light Ion Engine Aluminum Leg Aluminum Leg Aluminum Leg Improved Aluminum Leg Improved Aluminum Leg Improved Aluminum Leg Heat Sink Improved Terrain Scanner Seismic Detector Hacking Suite EM Pulse Gun Small Laser Small Laser Beam Cannon Assault Rifle Assault Rifle Light Assault Rifle Mining Laser Heavy Hammer Heavy Hammer Heavy Hammer Peak State ------------ > --- POWER ------------ Ion Engine > --- PROPULSION ------- Light Treads Light Treads > --- UTILITY ---------- Huge Storage Unit Light Armor Plating > --- WEAPON ----------- Particle Gun Heavy Hammer > --- INVENTORY -------- Ion Engine Light Treads Light Treads Aluminum Leg Aluminum Leg Aluminum Leg Improved Aluminum Leg Improved Aluminum Leg Improved Aluminum Leg Improved Aluminum Leg Heat Sink Improved Terrain Scanner Seismic Detector Hacking Suite EM Pulse Gun Small Laser Small Laser Beam Cannon Assault Rifle Assault Rifle Light Assault Rifle Mining Laser Heavy Hammer Heavy Hammer Heavy Hammer [Rating: 12] Favorites ----------- Power Ion Engine Engine Ion Engine Propulsion Light Treads Treads Light Treads Leg Improved Aluminum Leg Utility Light Armor Plating Storage Huge Storage Unit Protection Light Armor Plating Weapon Light Assault Rifle Energy Gun Particle Gun Ballistic Gun Light Assault Rifle Impact Weapon Heavy Hammer Build | -11 -10 -10 ------- Run | Yrd Mat Min Slots Evolved . | . . . Power . | . . . Propulsion . | . . . Utility . | . . . Weapon . | . . . Parts Attached 18 | 5 9 4 Power 1 | . 1 . Engine 1 | . 1 . Core . | . . . Reactor . | . . . Propulsion 6 | 2 1 3 Treads 5 | 2 1 2 Leg 1 | . . 1 Wheel . | . . . Hover . | . . . Flight . | . . . Utility 3 | 1 2 . Device . | . . . Storage 2 | 1 1 . Processor . | . . . Hackware . | . . . Protection 1 | . 1 . Artifact . | . . . Weapon 8 | 2 5 1 Energy Gun 2 | . 2 . Energy Cannon . | . . . Ballistic Gun 5 | 2 3 . Ballistic Cannon . | . . . Launcher . | . . . Special Weapon . | . . . Impact Weapon 1 | . . 1 Slashing Weapon . | . . . Piercing Weapon . | . . . Special Melee Weapon . | . . . Unidentified Prototypes . | . . . Parts Lost 7 | . . 7 Power 1 | . . 1 Propulsion 4 | . . 4 Utility 1 | . . 1 Weapon 1 | . . 1 Highest Loss Streak 4 | . . 4 To Critical Strikes . | . . . Average Slot Usage (%) 89 | . 98 58 Engine 10 | . 13 . Treads 27 | . 27 27 Storage 14 | . 14 14 Protection 10 | . 12 . Energy Gun 7 | . 9 1 Ballistic Gun 14 | . 18 . Impact Weapon 3 | . . 14 Peak Build Rating 12 | 6 11 12 Average Rating 8 | 4 9 8 On Entrance 5 | . 6 11 Naked Turns . | . . . Heaviest Build 92 | 8 92 92 Greatest Support 40 | 40 40 40 Greatest Overweight (x) 4 | 1 2 4 Average Overweight (x) 1 | . 1 2 Largest Inventory Capacity 25 | 8 25 25 Average Capacity 19 | 7 18 25 Most Carried 25 | 8 25 25 Average Carried 16 | 5 14 23 Final Capacity 25 | 8 25 25 Final Carried 25 | 8 25 23 Class Distribution -------------------- 100% | Mutant Dominant Class ---------------- Mutant | -10/Materials Mutant | -10/Mines Resources | -11 -10 -10 ----------- Run | Yrd Mat Min Matter Collected 538 | 271 252 15 Remotely . | . . . Salvage Created 980 | 72 698 210 Parts 56 | 9 46 1 Haulers Intercepted 2 | . 2 . Recyclers Shooed 1 | . 1 . Parts Field Recycled . | . . . Retrieved Matter . | . . . Parts Self-Destructed . | . . . Prevented . | . . . Kills | -11 -10 -10 ------- Run | Yrd Mat Min Combat Hostiles Destroyed 20 | . 13 7 Guns 13 | . 13 . Classes Destroyed 5 | 1 3 1 Tunneler 4 | 3 1 . Hauler 2 | . 2 . Operator 3 | . 3 . Swarmer 2 | . . 2 Grunt 18 | . 13 5 Best Kill Streak 3 | 1 3 2 Combat Bots Only 3 | . 3 2 Max Kills in Single Turn 2 | 1 2 1 Gunslinging . | . . . Exploded . | . . . Melee . | . . . Uniques/NPCs Destroyed . | . . . Combat | -11 -10 -10 -------- Run | Yrd Mat Min Hostile Shots Fired 130 | . 67 63 Missed 34 | . 20 14 Damage Taken 1247 | . 619 628 Core 253 | . 66 187 Absorbed by Shields . | . . . Core Remaining (%) 100 | 100 . . Volleys Fired 79 | 6 71 2 Largest 2 | 2 2 1 Hottest 85 | 40 85 65 Shots Fired 148 | 12 134 2 Gun 148 | 12 134 2 Cannon . | . . . Launcher . | . . . Special . | . . . Kinetic 112 | 12 100 . Thermal 36 | . 34 2 Explosive . | . . . Electromagnetic . | . . . Robot Hit Streak 15 | 2 15 5 Robot Miss Streak 5 | 2 5 . Penetration Max . | . . . Secondary Targets 4 | . 4 . Max Gunslinging Chain 1 | . 1 . Shots Hit Robots 119 | 6 93 20 Core Hits 43 | 4 39 . Critical Kills . | . . . Critical Parts Destroyed 1 | . . 1 Critical Strikes 3 | . 2 1 Burn 2 | . 2 . Smash 1 | . . 1 Melee Attacks 21 | . . 21 Impact 21 | . . 21 Slashing . | . . . Piercing . | . . . Sneak Attacks . | . . . Combat Hostiles . | . . . Follow-up Attacks . | . . . Damage Inflicted 1862 | 62 1040 760 Guns 1109 | 62 1016 31 Cannons . | . . . Explosions . | . . . Melee 729 | . . 729 Ramming 24 | . 24 . Kinetic 737 | 62 675 . Thermal 372 | . 341 31 Explosive . | . . . Electromagnetic . | . . . Impact 729 | . . 729 Slashing . | . . . Piercing . | . . . Highest Corruption . | . . . Average Corruption . | . . . Corruption Purged . | . . . Corruption Blocked . | . . . Overload Shots . | . . . Overflow Damage 144 | . . 144 Projectiles . | . . . Explosions . | . . . Melee 144 | . . 144 Knockbacks 1 | . . 1 Impact 1 | . . 1 Kinetic . | . . . Secondary . | . . . Self-Inflicted Damage . | . . . Shots . | . . . Rammed 7 | 1 6 . Targets Rammed 7 | 1 6 . Kicked . | . . . Crushed . | . . . Highest Temperature 301 | . 301 74 Average Temperature 56 | . 57 36 Received Heat Transfer 687 | . 348 339 Effects 1 | . 1 . Energy Bleed 1 | . 1 . Siege Activations . | . . . Robots Corrupted 7 | . . 7 Combat Hostiles 7 | . . 7 Parts Fried 6 | . . 6 Impact Corruptions 11 | . . 11 Robots Melted . | . . . Combat Hostiles . | . . . Parts Melted 2 | . 2 . Heat Transferred 1040 | . 966 74 Parts Sabotaged . | . . . Parts Stolen . | . . . Parts Stripped . | . . . Power Chain Reactions . | . . . Alert | -11 -10 -10 ------- Run | Yrd Mat Min Peak Influence 170 | 15 159 170 Initial 9 | . 9 . Average 44 | 6 42 69 Maximum Alert Level . | . . . Low Security (%) 100 | 100 100 100 Level 1 . | . . . Level 2 . | . . . Level 3 . | . . . Level 4 . | . . . Level 5 . | . . . High Security . | . . . Max Security . | . . . Squads Dispatched 5 | . 5 . Investigation 4 | . 4 . Extermination . | . . . Reinforcement 1 | . 1 . Assault . | . . . Garrison . | . . . Intercept . | . . . Searches Triggered . | . . . Construction Impeded . | . . . Haulers Reinforced . | . . . Active Scanning Responses . | . . . Cargo Convoy Interrupts . | . . . Stealth | -11 -10 -10 --------- Run | Yrd Mat Min Distress Signals 3 | . 3 . Communications Jammed . | . . . Distress Signals . | . . . Times Spotted 45 | . 30 15 Peak Tracking Total 4 | . 4 2 Tactical Retreats 5 | . . 5 Traps | -11 -10 -10 ------- Run | Yrd Mat Min Traps Triggered 6 | . 6 . Indirectly . | . . . Trap Hack Attempts . | . . . Triggered . | . . . Disarmed . | . . . Reprogrammed . | . . . Reused . | . . . Traps Extracted . | . . . Installed . | . . . Triggered . | . . . Machines | -11 -10 -10 ---------- Run | Yrd Mat Min Machines Disabled . | . . . Max in Single Turn . | . . . Machines Repaired . | . . . Machines Dismantled . | . . . Machines Sabotaged . | . . . Overloaded Fab Kills . | . . . Hacking | -11 -10 -10 --------- Run | Yrd Mat Min Machines Accessed 7 | . 7 . Terminals 6 | . 6 . Fabricators . | . . . Repair Stations 1 | . 1 . Recycling Units . | . . . Scanalyzers . | . . . Garrison Access . | . . . Total Hacks 20 | . 20 . Successful 5 | . 5 . Failed 15 | . 15 . Catastrophic 3 | . 3 . Database Lockouts . | . . . Manual 17 | . 17 . Terminals 17 | . 17 . Fabricators . | . . . Repair Stations 3 | . 3 . Recycling Units . | . . . Scanalyzers . | . . . Garrison Access . | . . . Terminal Hacks 2 | . 2 . Terminal Index 1 | . 1 . Hauler Manifests 1 | . 1 . Fabricator Hacks . | . . . Repair Station Hacks 1 | . 1 . Scan Component 1 | . 1 . Recycling Unit Hacks . | . . . Scanalyzer . | . . . Garrison Access Hacks . | . . . Unauthorized Hacks 2 | . 2 . Terminals 2 | . 2 . Assimilate 1 | . 1 . Operators 1 | . 1 . Fabricators . | . . . Repair Stations . | . . . Recycling Units . | . . . Scanalyzers . | . . . Garrison Access . | . . . Data Cores Recovered . | . . . Used . | . . . Hacking Detections 6 | . 6 . Full Trace Events 4 | . 4 . Feedback Events . | . . . Feedback Blocked . | . . . Robot Schematics Acquired . | . . . Robots Built . | . . . Authchips . | . . . Time . | . . . Total Robot Build Rating . | . . . Part Schematics Acquired . | . . . Parts Built . | . . . Authchips . | . . . Time . | . . . Total Part Build Rating . | . . . Parts Repaired . | . . . Time . | . . . Parts Recycled . | . . . Recycled Matter . | . . . Retrieved Matter . | . . . Retrieved Components . | . . . Parts Scanalyzed . | . . . Part Schematics Acquired . | . . . Parts Damaged . | . . . Bothacking | -11 -10 -10 ------------ Run | Yrd Mat Min Used RIF Installer . | . . . Robots Hacked . | . . . Non-combat . | . . . Combat . | . . . Robot Hacks Applied . | . . . Relay Couplers Released . | . . . Fabnet Peak Effective % . | . . . Robots Rewired . | . . . Allies Hacked . | . . . Hacks Repelled . | . . . Allies | -11 -10 -10 -------- Run | Yrd Mat Min Total Allies . | . . . Largest Group . | . . . Highest-Rated Group . | . . . Highest-Rated Ally . | . . . Total Orders . | . . . Ally Attacks . | . . . Total Damage . | . . . Kills . | . . . Allies Corrupted . | . . . Allies Melted . | . . . Intel | -11 -10 -10 ------- Run | Yrd Mat Min Robot Analysis Total . | . . . Derelict Logs Recovered . | . . . Drone Launches . | . . . Drone Recoveries . | . . . Exploration | -11 -10 -10 ------------- Run | Yrd Mat Min Turns Passed 3505 | 288 2502 715 Spaces Moved 1267 | 157 908 202 Core 19 | 19 . . Treads 1248 | 138 908 202 Legs . | . . . Wheels . | . . . Hover . | . . . Flight . | . . . Fastest Speed 50 | 50 160 320 Average Speed 243 | 149 242 320 Slowest Speed 480 | 160 320 480 Overloaded Moves . | . . . Propulsion Burnouts . | . . . Robots Hopped . | . . . Cave-ins Triggered . | . . . Exploration Rate (%) 52 | 8 99 51 Regions Visited 2 Branch Regions 1 Pre-discovered Areas . | . . . Known Exits Taken . | . . . Unknown Exits Taken 2 | 1 1 . Scrap Searched . | . . . Spaces Dug . | . . . Terrain Destroyed . | . . . Melee . | . . . Projectile . | . . . AOE . | . . . Terrain Rammed . | . . . Walls Destroyed . | . . . Machines Disabled . | . . . Actions | -11 -10 -10 --------- Run | Yrd Mat Min Total 1509 | 199 1080 230 Wait 68 | 18 50 . Move 1265 | 156 907 202 Hop . | . . . Pick Up 40 | 13 26 1 Fast Attach 6 | . 6 . Attach 9 | 5 1 3 Detach . | . . . Swap 3 | . 2 1 Drop 11 | . 11 . Fire 79 | 6 71 2 Melee 21 | . . 21 Ram . | . . . Kick . | . . . Crush 7 | 1 6 . Escape Stasis . | . . . Rewire . | . . . Trap . | . . . Miscellaneous . | . . . Route ------- -11/Scrapyard -10/Materials (discovered 6 exits: [*Mat x3] / [*Min x2] / [*Sub]) -10/Mines (discovered 2 exits: [*Mat x2]) History --------- Turn | Location | Event 4 | -11/Scrapyard | Discovered new exit (range 16) 289 | -11/Scrapyard | Entered Materials 309 | -10/Materials | Build established: Mutant 407 | -10/Materials | Discovered new exit (range 8) 633 | -10/Materials | Discovered new exit (range 11) 778 | -10/Materials | Discovered new exit (range 12) 819 | -10/Materials | Discovered new exit (range 7) 1045 | -10/Materials | Discovered new exit (range 16) 1852 | -10/Materials | Discovered new exit (range 12) 2791 | -10/Materials | Entered Mines 2852 | -10/Mines | Lost 4 parts (1p2n1u) 2861 | -10/Mines | Core integrity fell below 50% 2970 | -10/Mines | Discovered new exit (range 6) 3461 | -10/Mines | Discovered new exit (range 8) 3504 | -10/Mines | Core integrity fell below 20% 3506 | -10/Mines | Destroyed by Y-45 Defender with Heavy Assault Rifle Last Messages --------------- 03040_ Destroyed Aluminum Leg. 03040_ G-47 Trooper system corrupted by crushing effect. 03041_ G-47 Trooper system terminally corrupted. 03049_ Destroyed Heat Sink. 03049_ G-34 Mercenary system corrupted by crushing effect. 03050_ G-34 Mercenary system terminally corrupted. 03050_ Aluminum Leg fried. 03079_ R-06 Scavenger collects Corrupted Aluminum Leg. 03085_ K-01 Serf collects debris. 03392_ K-01 Serf cleans the Pressure Siphon. 03461_ EXIT=FOUND 03497_ Critical hit (Burn: +37). 03502_ Lgt. Treads destroyed. 03503_ Critical hit (Burn: +37). 03505_ Lgt. Treads destroyed. Map ----- +----------------------------------------------------+ | ??????????????# ## #????### | | ??????????##### ## #??????## | | ??????????# ## #???????# # | | ??????????# ### ##??????# ### | | ??????????# #?# #??????## ##?? | | ??????????# #?# #???????####??? | | ??????????# #?# #?????????????? | | ??????????# #?## #?????????????? | | ??????????# #?## ##?????????????? | | ??????????# ### ##?????????????? | | ?????????## ####??????????? | | ????????## ##?????????? | | ????????# #?????????? | | ????????# #?????????? | | ????????## ## ##????????? | | ?????????####### ######???? | | ???????????????## ##??? | | ????????????????#### ##?? | | ??????????????????## #?? | | ???????######????## """ ## | | ??????##"[!"##???# """ #?### | | ??????#""!!""#???# """ #????? | | ??????#$ #???## """ ##????? | | ???????#Y ###???# #???????# | | ??????###/Y## #???# ## #??? | | ??????# @ #???## ### #? | | ??????# #????## #?? ?? | | ??????# ####### #??# ? ??? | | ??????# < #???### ????? | | ??????# ##########??????? ???? | | ??????# #????????????????????? | | ??????# #????????????????????? | | ??????# #????????????????????? | | ??????# #????????????????????? | | ??????# #????????????????????? | | ??????# #????????????????????? | | ??????#########????????????????????? | | ???????????????????????????????????? | | ???????????????????????????????????? | | ???????????????????????????????????? | | ???????????????????????????????????? | | ???????????????????????????????????? | | ???????????????????????????????????? | | ???????????????????????????????????? | | ???????????????????????????????????? | | ???????????????????????????????????? | | ???????????????????????????????????? | | | | | | | +----------------------------------------------------+ Best States ------------- Heat Dissipation 25 Energy Generation 10 Energy Capacity 250 Matter Stores 300 Matter Capacity 300 Sight Range 16 Terrain Scan Density 10 Armor Coverage 150 Evasion (%) 40 Recoil Reduction 2 Item Schematics ----------------- None Robot Schematics ------------------ None Fabricated ------------ Nothing Alien Tech Used ----------------- None Achievements -------------- None Challenges ------------ None Game ------ Seed AssaultActiveNanosword Manual? 0 Play Time 00:23:27 Cumulative 42.2 hours Start 2024.09.09 @ 15:46:11 End 2024.09.09 @ 16:10:19 Sessions 1 Manual Loads 0 Difficulty Rogue Special Mode None Game No. 73 Rogue 73 Adventurer 0 Explorer 0 Win Type - Total 0 Types 0/0/0/0/0/0/0/0/0 Lore% 37 Gallery% 29 Achievement% 26 Wizard Run 0 Options --------- Layout 1 ASCII 0 Keyboard 0 Movement Mouse Keybinds 0 Fullscreen 2 Font 24/Smallcaps Map View 50x35 Zoom Use 0% Tactical HUD 1 Map Filters NONE Filters NONE Steam 1 RUN: e24050b9-291b-478b-9cbe-7a217426a22d